Cogmind - Beta 11 X3 --- EXPLORER MODE // 2021.04.04 @ 12:56:18 Player: Krytoss Result: Destroyed by P-80 Master with Gamma Rifle Performance ------------- Evolutions (9) 4500 Regions Visited (16) 3200 Robots Destroyed (94) 470 Value Destroyed (2815) 2815 Prototype IDs (27) 540 Alien Tech Used (0) 0 Bonus (485) 485 TOTAL SCORE: 12010 Bonus ------- Follower Combat Kills 285 Network Hubs Disabled 200 Cogmind --------- Core Integrity 0/1600 Matter 256/300 Energy 99/100 System Corruption 19% Temperature Cool (0) Movement Core (50) Location -1/Access Parts ------- > --- POWER (2) -------- (None) > --- PROPULSION (6) --- (None) > --- UTILITY (16) ----- Advanced Signal Interpreter Advanced Terrain Scan Processor Advanced Melee Analysis Suite > --- WEAPON (2) ------- (None) > --- INVENTORY (5) ---- Reinforced Quantum Reactor Advanced Shield Generator Quantum Rifle Falx Peak State ------------ > --- POWER ------------ Micro Fission Core Light Antimatter Reactor > --- PROPULSION ------- Biometal Leg Biometal Leg Biometal Leg Centrium Leg Centrium Leg Experimental Biometal Leg > --- UTILITY ---------- Advanced Cryofiber Web Medium Storage Unit Compact Matter Pod Enhanced Optical Array Advanced Sensor Array Advanced Signal Interpreter Advanced Terrain Scan Processor Advanced Targeting Computer Advanced Melee Analysis Suite Improved Stasis Canceller Improved Transmission Jammer Powered Armor Advanced Shield Generator Point Defense Array Antimissile System Advanced System Shield > --- WEAPON ----------- Enhanced Nova Cannon Hypervelocity Railgun > --- INVENTORY -------- Improved Heavy Treads Advanced Sensor Array Advanced Signal Interpreter Advanced Shield Generator Quantum Rifle Nova Cannon Enhanced Nova Cannon Enhanced Nova Cannon Fusion Bomb Launcher [Rating: 172] Favorites ----------- Power Micro Fission Core Engine Ion Engine Power Core Micro Fission Core Reactor Light Antimatter Reactor Propulsion Advanced Treads Treads Advanced Treads Leg Aluminum Leg Hover Unit Gravmag System Flight Unit Xenon Bombardment Thruster Utility Medium Storage Unit Device Structural Scanner Storage Medium Storage Unit Processor Visual Processing Unit Hackware Advanced System Shield Protection Improved Light Armor Plating Weapon Greatsword Energy Gun Heavy EM Pulse Gun Energy Cannon Advanced Beam Cannon Ballistic Gun Assault Rifle Launcher Shock Bomb Launcher Special Weapon Plasma Cutter Slashing Weapon Greatsword Piercing Weapon Lance Build | -11 -10 -9 -8 -7 -7 -7 -6 -5 -4 -4 -4 -4 -4 -3 -2 -1 ------- Run | Scr Mat Mat Mat Fac Was Fac Fac Fac Fac Ext Cet Arc Hub Res Res Acc Slots Evolved 19 | . 1 2 2 2 . . 2 2 2 . . . . 2 2 2 Power 1 | . . . . . . . . . . . . . . 1 . . Propulsion 4 | . . 1 . . . . 1 1 . . . . . . 1 . Utility 14 | . 1 1 2 2 . . 1 1 2 . . . . 1 1 2 Weapon . | . . . . . . . . . . . . . . . . . Parts Attached 210 | . 5 31 15 12 11 24 20 18 12 2 . . 8 10 12 30 Power 15 | . . 1 1 2 1 3 . 2 . . . . 1 1 1 2 Engine 4 | . . 1 . 1 . 2 . . . . . . . . . . Core 10 | . . . 1 1 1 1 . 2 . . . . 1 1 1 1 Reactor 1 | . . . . . . . . . . . . . . . . 1 Propulsion 65 | . . 10 . 3 3 7 9 10 3 . . . 4 2 7 7 Treads 10 | . . 6 . 3 . . . . . . . . . . . 1 Leg 10 | . . 4 . . . . . . . . . . . . . 6 Wheel . | . . . . . . . . . . . . . . . . . Hover 11 | . . . . . 3 7 1 . . . . . . . . . Flight 34 | . . . . . . . 8 10 3 . . . 4 2 7 . Utility 92 | . 2 10 11 4 4 11 10 5 9 1 . . 2 5 3 15 Device 56 | . 1 6 6 3 3 6 8 4 2 1 . . 2 5 1 8 Storage 8 | . . 1 1 . . 2 . . 1 . . . . . . 3 Processor 15 | . 1 1 . . . 2 2 1 4 . . . . . 2 2 Hackware 3 | . . . . . . . . . 2 . . . . . . 1 Protection 10 | . . 2 4 1 1 1 . . . . . . . . . 1 Artifact . | . . . . . . . . . . . . . . . . . Weapon 38 | . 3 10 3 3 3 3 1 1 . 1 . . 1 2 1 6 Energy Gun 11 | . 2 6 2 1 . . . . . . . . . . . . Energy Cannon 5 | . . 1 1 . . . . . . . . . . . . 3 Ballistic Gun 5 | . 1 1 . . 1 1 . . . . . . . . . 1 Ballistic Cannon . | . . . . . . . . . . . . . . . . . Launcher 2 | . . . . . 1 1 . . . . . . . . . . Special Weapon 3 | . . 1 . 1 1 . . . . . . . . . . . Impact Weapon . | . . . . . . . . . . . . . . . . . Slashing Weapon 8 | . . 1 . 1 . 1 1 1 . 1 . . . . . 2 Piercing Weapon 4 | . . . . . . . . . . . . . 1 2 1 . Special Melee Weapon . | . . . . . . . . . . . . . . . . . Unidentified Prototypes 3 | . . . . . . 1 . 1 . . . . . . . 1 Parts Lost 44 | . . 2 . . . 1 . . . 1 . . 4 1 18 17 Power 3 | . . . . . . 1 . . . . . . . . 1 1 Propulsion 14 | . . . . . . . . . . . . . 1 1 9 3 Utility 22 | . . 1 . . . . . . . . . . 3 . 6 12 Weapon 5 | . . 1 . . . . . . . 1 . . . . 2 1 Highest Loss Streak 13 | . . 2 . . . 1 . . . 1 . . 2 1 13 10 Average Slot Usage (%) 89 | . 98 98 99 100 100 94 91 89 83 85 85 85 88 89 76 66 Engine 3 | . 12 10 1 5 . 3 . . . . . . . . . . Core 3 | . . . 6 1 6 2 6 4 5 5 5 5 5 9 6 1 Treads 5 | . . 15 25 21 . . . . . . . . . . . . Leg 6 | . 25 13 . . . . . . . . . . . . . 15 Hover 3 | . . . . . 20 21 . . . . . . . . . . Flight 6 | . . . . . . . 24 23 15 15 15 15 15 13 10 . Device 19 | . 12 17 15 21 34 23 23 27 20 20 25 25 24 25 21 10 Storage 6 | . 12 10 8 7 . 5 6 5 5 5 5 5 5 4 3 5 Processor 17 | . 11 10 16 14 14 22 25 22 24 24 20 20 20 18 18 20 Hackware 1 | . . . . . . . . . 8 10 10 10 10 9 6 2 Protection 2 | . . 1 8 13 6 4 . . . . . . . . . 1 Energy Gun 4 | . 11 11 10 8 . . . . . . . . . . . . Ballistic Gun 2 | . 12 6 . . 3 . . . . . . . . . . 1 Slashing Weapon 2 | . . . 1 . 7 7 5 4 5 5 5 5 5 3 . . Naked Turns . | . . . . . . . . . . . . . . . . . Heaviest Build 84 | 19 21 35 39 50 47 26 26 28 28 27 27 27 30 36 41 84 Greatest Support 172 | 20 20 66 66 72 70 27 36 33 37 37 37 37 37 38 47 172 Greatest Overweight (x) 1 | . 1 1 . . . . 1 . . . . . . . . 1 Average Overweight (x) . | . . . . . . . . . . . . . . . . . Largest Inventory Capacity 15 | . 10 15 15 15 15 10 10 10 10 10 10 10 10 10 10 10 Average Capacity 10 | . 10 14 15 15 6 8 10 10 10 10 10 10 10 10 9 7 Most Carried 15 | . 10 15 15 15 15 10 10 10 10 10 8 8 10 10 10 10 Average Carried 9 | . 9 13 14 14 5 8 9 9 9 9 8 8 8 8 8 5 Final Capacity 15 | 10 10 15 15 15 5 10 10 10 10 10 10 10 10 10 5 5 Final Carried 15 | 7 10 15 15 15 5 10 10 10 10 8 8 8 9 10 5 4 Class Distribution -------------------- 44% | Hacker-Mutant 27% | Hacker-Ninja 9% | Scavenger-Ninja 5% | Scavenger-Mutant 4% | Hacker-Skirmisher 4% | Hacker-Gladiator 3% | Hacker-Scout Dominant Class ---------------- Hacker-Mutant | -10/Materials Hacker-Mutant | -9/Materials Hacker-Mutant | -8/Materials Hacker-Mutant | -7/Factory Scavenger-Mutant | -7/Waste Scavenger-Ninja | -7/Factory Scavenger-Ninja | -6/Factory Hacker-Ninja | -5/Factory Hacker-Ninja | -4/Factory Hacker-Ninja | -4/Extension Hacker-Ninja | -4/Cetus Hacker-Ninja | -4/Archives Hacker-Ninja | -4/Hub_04(d) Hacker-Ninja | -3/Research Hacker-Ninja | -2/Research Hacker-Skirmisher | -1/Access Resources | -11 -10 -9 -8 -7 -7 -7 -6 -5 -4 -4 -4 -4 -4 -3 -2 -1 ----------- Run | Scr Mat Mat Mat Fac Was Fac Fac Fac Fac Ext Cet Arc Hub Res Res Acc Matter Collected 2541 | 198 75 460 150 110 167 317 200 130 140 30 . . 20 115 110 319 Remotely . | . . . . . . . . . . . . . . . . . Salvage Created 3733 | . 156 1430 245 263 . 762 49 . 166 90 . . 20 15 236 301 Parts 250 | . 17 104 13 26 . 45 2 . 5 2 . . 3 2 11 20 Haulers Intercepted 6 | . 1 1 . . . 2 . . 1 . . . . . . 1 Recyclers Shooed 1 | . . 1 . . . . . . . . . . . . . . Parts Field Recycled . | . . . . . . . . . . . . . . . . . Retrieved Matter . | . . . . . . . . . . . . . . . . . Parts Self-Destructed . | . . . . . . . . . . . . . . . . . Prevented . | . . . . . . . . . . . . . . . . . Kills | -11 -10 -9 -8 -7 -7 -7 -6 -5 -4 -4 -4 -4 -4 -3 -2 -1 ------- Run | Scr Mat Mat Mat Fac Was Fac Fac Fac Fac Ext Cet Arc Hub Res Res Acc Combat Hostiles Destroyed 60 | . 4 32 5 4 . 7 2 . . 1 . . . . 4 1 Melee 18 | . . 3 1 1 . 6 2 . . 1 . . . . 4 . Guns 35 | . 4 25 3 2 . 1 . . . . . . . . . . Cannons 3 | . . . 1 1 . . . . . . . . . . . 1 AOE 4 | . . 4 . . . . . . . . . . . . . . Classes Destroyed 13 | . 3 5 1 1 . 3 . . . . . . . . . . Worker 2 | . . 1 . . . 1 . . . . . . . . . . Builder 9 | . . 2 . 1 . 3 . . . . . . . 1 . 2 Tunneler 1 | . . . . . . 1 . . . . . . . . . . Hauler 6 | . 1 1 . . . 2 . . 1 . . . . . . 1 Recycler 1 | . . . . . . 1 . . . . . . . . . . Operator 2 | . . . . . . 1 . . . . . . 1 . . . Watcher 13 | . 2 3 . 1 . 4 . . 1 . . . . . 1 1 Swarmer 19 | . 4 10 . . . . 2 . . . . . . . 3 . Grunt 24 | . . 15 3 1 . 4 . . . . . . . . 1 . Duelist 1 | . . 1 . . . . . . . . . . . . . . Sentry 10 | . . 6 1 . . 1 . . . 1 . . . . . 1 Hunter 1 | . . . 1 . . . . . . . . . . . . . Programmer 5 | . . . . 3 . 2 . . . . . . . . . . Best Kill Streak 4 | . 2 4 3 1 . 4 2 . 1 1 . . 1 1 2 2 Combat Bots Only 4 | . 2 4 3 1 . 2 2 . . 1 . . . . 2 1 Max Kills in Single Turn 2 | . 1 2 1 1 . 1 1 . 1 1 . . 1 1 1 1 Gunslinging . | . . . . . . . . . . . . . . . . . Exploded 1 | . . 1 . . . . . . . . . . . . . . Melee 1 | . . 1 1 1 . 1 1 . . 1 . . . . 1 . Uniques/NPCs Destroyed . | . . . . . . . . . . . . . . . . . Combat | -11 -10 -9 -8 -7 -7 -7 -6 -5 -4 -4 -4 -4 -4 -3 -2 -1 -------- Run | Scr Mat Mat Mat Fac Was Fac Fac Fac Fac Ext Cet Arc Hub Res Res Acc Damage Taken 9445 | . 43 778 257 147 48 347 129 206 . 281 100 35 342 210 1837 4685 Core 2815 | . 5 117 45 10 12 23 41 44 . 39 51 16 55 67 686 1604 Absorbed by Shields 170 | . . . . . . . . . . 19 . . . . . 151 Core Remaining (%) 87 | 100 98 70 91 . . 93 95 95 . . . . 86 94 52 . Volleys Fired 151 | . 11 75 14 11 5 10 . . . . . . . . . 25 Largest 2 | . 2 2 2 2 1 1 . . . . . . . . . 2 Hottest 240 | . 65 90 123 123 33 23 . . . . . . . . . 240 Shots Fired 270 | . 22 142 28 21 5 10 . . . . . . . . . 42 Gun 225 | . 22 141 17 13 1 10 . . . . . . . . . 21 Cannon 39 | . . 1 11 6 . . . . . . . . . . . 21 Launcher 4 | . . . . . 4 . . . . . . . . . . . Special 2 | . . . . 2 . . . . . . . . . . . . Kinetic 98 | . 11 55 . . 1 10 . . . . . . . . . 21 Thermal 65 | . . 4 22 18 . . . . . . . . . . . 21 Explosive 4 | . . . . . 4 . . . . . . . . . . . Electromagnetic 103 | . 11 83 6 3 . . . . . . . . . . . . Robot Hit Streak 34 | . 8 24 34 28 29 13 . . . . . . . . . 17 Robot Miss Streak 3 | . 3 3 2 . 1 . . . . . . . . . . 2 Penetration Max 1 | . . . . . . . . . . . . . . . . 1 Secondary Targets . | . . . . . . . . . . . . . . . . . Shots Hit Robots 273 | . 12 112 22 21 4 42 6 4 5 5 . . 1 2 7 30 Core Hits 133 | . 7 57 11 11 2 21 2 . 2 1 . . 2 1 5 11 Critical Hits 12 | . . 2 . 1 . 1 . . . . . . . . 1 7 Critical Kills 5 | . . 1 . . . . . . . . . . . . 1 3 Critical Parts Destroyed 6 | . . 1 . 1 . 1 . . . . . . . . . 3 Melee Attacks 143 | . . 4 . 1 . 36 14 15 18 5 2 1 6 11 27 3 Impact . | . . . . . . . . . . . . . . . . . Slashing 100 | . . 4 . 1 . 36 14 15 18 5 2 1 . 1 . 3 Piercing 43 | . . . . . . . . . . . . . 6 10 27 . Sneak Attacks 15 | . . . . . . 10 1 . 2 . . . . 2 . . Combat Hostiles . | . . . . . . . . . . . . . . . . . Follow-up Attacks 3 | . . . . . . . . . . . . . . 1 2 . Damage Inflicted 9731 | . 161 2340 453 432 310 2959 467 265 513 318 . . 111 236 381 785 Guns 2650 | . 161 1627 264 254 16 187 . . . . . . . . . 141 Cannons 934 | . . 20 184 122 . . . . . . . . . . . 608 Explosions 916 | . . 555 . . 294 . . . . . . . 67 . . . Melee 5147 | . . 131 . 33 . 2772 467 265 513 318 . . 44 236 368 . Ramming 61 | . . 7 5 . . . . . . . . . . . 13 36 Kinetic 888 | . 46 498 . . 16 187 . . . . . . . . . 141 Thermal 1901 | . . 590 347 356 . . . . . . . . . . . 608 Explosive 294 | . . . . . 294 . . . . . . . . . . . Electromagnetic 1440 | . 115 1114 101 43 . . . . . . . . 67 . . . Impact . | . . . . . . . . . . . . . . . . . Slashing 4625 | . . 131 . 33 . 2772 467 265 513 318 . . . 126 . . Piercing 522 | . . . . . . . . . . . . . 44 110 368 . Highest Corruption 19 | . . . . 2 2 4 . 3 . 1 1 1 6 . 4 19 Average Corruption 4 | . . . . 1 2 3 . 2 . 1 1 1 2 . 2 11 Corruption Purged . | . . . . . . . . . . . . . . . . . Effects 79 | . . . . . 2 32 . 1 . . . . 2 . 4 38 Message Errors 14 | . . . . . . 8 . . . . . . . . 2 4 Matter Fused 14 | . . . . . . 6 . . . . . . . . 1 7 Heat Flow Errors 10 | . . . . . . 8 . 1 . . . . . . . 1 Energy Discharges 10 | . . . . . 1 4 . . . . . . . . 1 4 Parts Rejected 3 | . . . . . . . . . . . . . 1 . . 2 Data Loss (minor) 11 | . . . . . 1 6 . . . . . . 1 . . 3 Data Loss (major) 1 | . . . . . . . . . . . . . . . . 1 Misdirections 16 | . . . . . . . . . . . . . . . . 16 Overload Shots . | . . . . . . . . . . . . . . . . . Overflow Damage 1176 | . . 130 11 . . 579 130 102 101 . . . 12 70 1 40 Projectiles 51 | . . . 11 . . . . . . . . . . . . 40 Explosions 142 | . . 130 . . . . . . . . . . 12 . . . Melee 983 | . . . . . . 579 130 102 101 . . . . 70 1 . Knockbacks . | . . . . . . . . . . . . . . . . . Impact . | . . . . . . . . . . . . . . . . . Kinetic . | . . . . . . . . . . . . . . . . . Secondary . | . . . . . . . . . . . . . . . . . Self-Inflicted Damage 159 | . . 70 . . . . . . . . . . 70 . 5 14 Shots 4 | . . 3 . . . . . . . . . . 1 . . . Rammed 13 | . . 1 . . . . . . . . . . . . 3 9 Targets Rammed 16 | . . 3 1 . . . . . . . . . . . 3 9 Kicked 2 | . . 2 . . . . . . . . . . . . . . Crushed 1 | . . . 1 . . . . . . . . . . . . . Highest Temperature 424 | . 20 21 132 36 . 270 . 237 . . 6 . . . . 424 Average Temperature 77 | . 7 5 42 13 . 103 . 125 . . 6 . . . . 134 Received Heat Transfer 1195 | . . 327 153 27 . 177 12 27 . 37 18 9 9 27 99 273 Effects 1 | . . . . . . . . . . . . . . . . 1 Short Circuit 1 | . . . . . . . . . . . . . . . . 1 Siege Activations . | . . . . . . . . . . . . . . . . . Robots Corrupted . | . . . . . . . . . . . . . . . . . Combat Hostiles . | . . . . . . . . . . . . . . . . . Parts Fried 4 | . . 2 . . . . . . . 2 . . . . . . Impact Corruptions . | . . . . . . . . . . . . . . . . . Robots Melted . | . . . . . . . . . . . . . . . . . Combat Hostiles . | . . . . . . . . . . . . . . . . . Parts Melted 1 | . . . . 1 . . . . . . . . . . . . Heat Transferred 2387 | . . 574 666 629 . . . . . . . . . . . 518 Parts Sabotaged . | . . . . . . . . . . . . . . . . . Parts Stolen . | . . . . . . . . . . . . . . . . . Parts Stripped . | . . . . . . . . . . . . . . . . . Power Chain Reactions 6 | . . 6 . . . . . . . . . . . . . . Missiles Intercepted . | . . . . . . . . . . . . . . . . . Alert | -11 -10 -9 -8 -7 -7 -7 -6 -5 -4 -4 -4 -4 -4 -3 -2 -1 ------- Run | Scr Mat Mat Mat Fac Was Fac Fac Fac Fac Ext Cet Arc Hub Res Res Acc Peak Influence 724 | . 123 253 255 118 102 225 187 202 188 177 87 86 267 289 724 295 Initial 151 | . . . 25 21 27 54 36 . 72 20 53 24 20 104 121 151 Average 89 | . 41 86 90 39 65 79 61 35 93 90 79 40 170 168 246 109 Maximum Alert Level 3 | . . 1 1 . . 1 . 1 . . . . 1 1 3 1 Low Security (%) 92 | . 100 91 96 100 100 93 100 99 100 100 100 100 54 81 52 92 Level 1 5 | . . 8 3 . . 6 . . . . . . 45 18 17 7 Level 2 1 | . . . . . . . . . . . . . . . 30 . Level 3 . | . . . . . . . . . . . . . . . . . Level 4 . | . . . . . . . . . . . . . . . . . Level 5 . | . . . . . . . . . . . . . . . . . High Security . | . . . . . . . . . . . . . . . . . Max Security . | . . . . . . . . . . . . . . . . . Squads Dispatched 25 | . . 6 1 2 . 3 3 3 1 . . . . 2 2 2 Investigation . | . . . . . . . . . . . . . . . . . Extermination 9 | . . . . 2 . 1 . 2 1 . . . . . 1 2 Reinforcement 15 | . . 6 1 . . 2 2 1 . . . . . 2 1 . Assault . | . . . . . . . . . . . . . . . . . Garrison 1 | . . . . . . . 1 . . . . . . . . . Intercept . | . . . . . . . . . . . . . . . . . Construction Impeded 2 | . . 1 . . . 1 . . . . . . . . . . Haulers Reinforced 1 | . . . . . . 1 . . . . . . . . . . Stealth | -11 -10 -9 -8 -7 -7 -7 -6 -5 -4 -4 -4 -4 -4 -3 -2 -1 --------- Run | Scr Mat Mat Mat Fac Was Fac Fac Fac Fac Ext Cet Arc Hub Res Res Acc Distress Signals 17 | . . 2 2 2 . 1 . 2 . . 1 . . . 4 3 Communications Jammed 49 | . . . . 9 . . . 6 . . 6 . 4 . 24 . Distress Signals 49 | . . . . 9 . . . 6 . . 6 . 4 . 24 . Times Spotted 343 | . 9 59 20 9 4 16 9 31 7 12 5 4 11 14 75 58 Peak Tracking Total 18 | . 2 6 5 5 2 5 4 9 4 8 5 4 7 10 18 14 Tactical Retreats 45 | . . 4 2 1 . . 1 8 . . . . 1 2 12 14 Traps | -11 -10 -9 -8 -7 -7 -7 -6 -5 -4 -4 -4 -4 -4 -3 -2 -1 ------- Run | Scr Mat Mat Mat Fac Was Fac Fac Fac Fac Ext Cet Arc Hub Res Res Acc Traps Triggered 13 | . . 1 1 1 . 6 . 1 . . . . 1 1 . 1 Indirectly 1 | . . . . . . . . . . . . . 1 . . . Trap Hack Attempts . | . . . . . . . . . . . . . . . . . Triggered . | . . . . . . . . . . . . . . . . . Disarmed . | . . . . . . . . . . . . . . . . . Reprogrammed 22 | . 5 . . . . . . . . 1 . . 6 10 . . Reused 2 | . . . . . . . . . . . . . . 2 . . Traps Extracted . | . . . . . . . . . . . . . . . . . Installed . | . . . . . . . . . . . . . . . . . Triggered 2 | . . . . . . . . . . . . . . 2 . . Machines | -11 -10 -9 -8 -7 -7 -7 -6 -5 -4 -4 -4 -4 -4 -3 -2 -1 ---------- Run | Scr Mat Mat Mat Fac Was Fac Fac Fac Fac Ext Cet Arc Hub Res Res Acc Machines Disabled 14 | . . 3 . . . 7 . . . . 1 . 1 . . 2 Max in Single Turn 1 | . . 1 . . . 1 . . . . 1 . 1 . . 1 Garrison Access 4 | . . . . . . 1 . . . . . . . 1 . 2 Network Hub 1 | . . . . . . . . . . . . . 1 . . . Machines Sabotaged . | . . . . . . . . . . . . . . . . . Garrisons Compromised . | . . . . . . . . . . . . . . . . . Overloaded Fab Kills . | . . . . . . . . . . . . . . . . . Fab Network Shutdowns . | . . . . . . . . . . . . . . . . . Hacking | -11 -10 -9 -8 -7 -7 -7 -6 -5 -4 -4 -4 -4 -4 -3 -2 -1 --------- Run | Scr Mat Mat Mat Fac Was Fac Fac Fac Fac Ext Cet Arc Hub Res Res Acc Machines Accessed 75 | . 9 7 1 1 . 10 11 4 7 6 2 . 6 4 4 3 Terminals 58 | . 8 5 . 1 . 7 8 3 5 6 2 . 6 3 3 1 Fabricators . | . . . . . . . . . . . . . . . . . Repair Stations 9 | . 1 1 . . . 2 2 1 1 . . . . . 1 . Recycling Units . | . . . . . . . . . . . . . . . . . Scanalyzers 3 | . . 1 1 . . . . . 1 . . . . . . . Garrison Access 5 | . . . . . . 1 1 . . . . . . 1 . 2 Total Hacks 257 | . 43 19 2 2 . 24 29 15 30 11 5 . 25 24 22 6 Successful 174 | . 34 12 2 1 . 17 22 11 22 10 5 . 13 15 8 2 Failed 83 | . 9 7 . 1 . 7 7 4 8 1 . . 12 9 14 4 Catastrophic 5 | . 1 1 . . . . . . . . . . . 1 2 . Database Lockouts . | . . . . . . . . . . . . . . . . . Manual 96 | . 29 8 . 2 . 13 7 3 8 1 . . 4 11 10 . Terminals 211 | . 41 15 . 2 . 18 22 6 18 11 5 . 25 23 21 4 Fabricators . | . . . . . . . . . . . . . . . . . Repair Stations 28 | . 2 2 . . . 4 5 9 5 . . . . . 1 . Recycling Units . | . . . . . . . . . . . . . . . . . Scanalyzers 11 | . . 2 2 . . . . . 7 . . . . . . . Garrison Access 7 | . . . . . . 2 2 . . . . . . 1 . 2 Terminal Hacks 115 | . 30 8 . . . 9 14 1 9 9 5 . 10 13 7 . Record 10 | . 1 . . . . . 1 . . . 4 . . 4 . . Robot Analysis 1 | . 1 . . . . . . . . . . . . . . . Prototype ID Bank 23 | . 17 . . . . . 3 . 1 . . . 1 1 . . Open Door 5 | . . . . . . . . . . 4 1 . . . . . Level Access Points 3 | . . . . . . 1 . . . . . . 1 . 1 . Branch Access Points 4 | . . . . . . . 1 . 1 1 . . 1 . . . Emergency Access Points 3 | . . . . . . . 2 . . . . . 1 . . . Machine Index 1 | . . . . . . . . . 1 . . . . . . . Terminal Index 1 | . . . . . . . 1 . . . . . . . . . Scanalyzer Index 1 | . 1 . . . . . . . . . . . . . . . Alert Level 9 | . . 1 . . . 2 2 . 1 1 . . 1 . 1 . Unreport Threat 7 | . . 2 . . . . . . . . . . . . 5 . Locate Traps 14 | . 4 2 . . . 2 1 1 1 2 . . . 1 . . Reprogram Traps 7 | . 2 . . . . . . . . 1 . . 1 3 . . Transport Status 1 | . . . . . . . . . . . . . . 1 . . Investigation Status 1 | . . . . . . . . . . . . . 1 . . . Assault Status 1 | . . . . . . . . . . . . . 1 . . . Hauler Manifests 5 | . 2 1 . . . 1 . . . . . . . 1 . . Registered Components 6 | . 1 1 . . . . 1 . 2 . . . . 1 . . Registered Prototypes 2 | . . . . . . . 1 . . . . . . 1 . . Zone Layout 10 | . 1 1 . . . 3 1 . 2 . . . 2 . . . Fabricator Hacks . | . . . . . . . . . . . . . . . . . Repair Station Hacks 25 | . 2 2 . . . 4 4 8 5 . . . . . . . Scan Component 13 | . 1 1 . . . 2 2 4 3 . . . . . . . Repair 12 | . 1 1 . . . 2 2 4 2 . . . . . . . Recycling Unit Hacks . | . . . . . . . . . . . . . . . . . Scanalyzer 11 | . . 2 2 . . . . . 7 . . . . . . . Insert Component 4 | . . 1 1 . . . . . 2 . . . . . . . Analyze 7 | . . 1 1 . . . . . 5 . . . . . . . Garrison Access Hacks 4 | . . . . . . 1 . . . . . . . 1 . 2 Seal Access 4 | . . . . . . 1 . . . . . . . 1 . 2 Unauthorized Hacks 19 | . 2 . . 1 . 3 4 2 1 1 . . 3 1 1 . Terminals 19 | . 2 . . 1 . 3 4 2 1 1 . . 3 1 1 . Assimilate 2 | . . . . . . . . 1 . 1 . . . . . . Botnet 16 | . 2 . . 1 . 3 4 1 1 . . . 2 1 1 . Operators 1 | . . . . . . . . . . . . . 1 . . . Fabricators . | . . . . . . . . . . . . . . . . . Repair Stations . | . . . . . . . . . . . . . . . . . Recycling Units . | . . . . . . . . . . . . . . . . . Scanalyzers . | . . . . . . . . . . . . . . . . . Garrison Access . | . . . . . . . . . . . . . . . . . Data Cores Recovered 1 | . . . . . . . . . . . . . 1 . . . Used 1 | . . . . . . . . . . . . . 1 . . . Hacking Detections 59 | . 8 5 . 1 . 9 10 4 6 2 1 . 5 3 4 1 Full Trace Events . | . . . . . . . . . . . . . . . . . Feedback Events . | . . . . . . . . . . . . . . . . . Feedback Blocked . | . . . . . . . . . . . . . . . . . Robot Schematics Acquired . | . . . . . . . . . . . . . . . . . Robots Built . | . . . . . . . . . . . . . . . . . Matter . | . . . . . . . . . . . . . . . . . Time . | . . . . . . . . . . . . . . . . . Total Robot Build Rating . | . . . . . . . . . . . . . . . . . Part Schematics Acquired 3 | . . 1 1 . . . . . 1 . . . . . . . Parts Built . | . . . . . . . . . . . . . . . . . Matter . | . . . . . . . . . . . . . . . . . Time . | . . . . . . . . . . . . . . . . . Total Part Build Rating . | . . . . . . . . . . . . . . . . . Parts Repaired 12 | . 1 1 . . . 2 2 4 2 . . . . . . . Time 441 | . 32 38 . . . 45 44 182 100 . . . . . . . Parts Recycled . | . . . . . . . . . . . . . . . . . Recycled Matter . | . . . . . . . . . . . . . . . . . Retrieved Matter . | . . . . . . . . . . . . . . . . . Retrieved Components . | . . . . . . . . . . . . . . . . . Parts Scanalyzed 4 | . . 1 1 . . . . . 2 . . . . . . . Part Schematics Acquired 3 | . . 1 1 . . . . . 1 . . . . . . . Parts Damaged . | . . . . . . . . . . . . . . . . . Bothacking | -11 -10 -9 -8 -7 -7 -7 -6 -5 -4 -4 -4 -4 -4 -3 -2 -1 ------------ Run | Scr Mat Mat Mat Fac Was Fac Fac Fac Fac Ext Cet Arc Hub Res Res Acc Used RIF Installer . | . . . . . . . . . . . . . . . . . Robots Hacked . | . . . . . . . . . . . . . . . . . Non-combat . | . . . . . . . . . . . . . . . . . Combat . | . . . . . . . . . . . . . . . . . Robot Hacks Applied . | . . . . . . . . . . . . . . . . . Relay Couplers Released . | . . . . . . . . . . . . . . . . . Robots Rewired . | . . . . . . . . . . . . . . . . . Allies Hacked 3 | . . . . . . 3 . . . . . . . . . . Hacks Repelled . | . . . . . . . . . . . . . . . . . Allies | -11 -10 -9 -8 -7 -7 -7 -6 -5 -4 -4 -4 -4 -4 -3 -2 -1 -------- Run | Scr Mat Mat Mat Fac Was Fac Fac Fac Fac Ext Cet Arc Hub Res Res Acc Total Allies 26 | . . . . . 19 . . 1 . 6 . . . . . . Largest Group 19 | . . . . . 19 15 . 1 . 6 . . . . . . Highest-Rated Group 477 | . . . . . 477 421 . 26 . 356 . . . . . . Highest-Rated Ally 156 | . . . . . 35 35 . 26 . 156 . . . . . . Total Orders . | . . . . . . . . . . . . . . . . . Ally Attacks 161 | . . . . . 113 24 . . . 24 . . . . . . Total Damage 4219 | . . . . . 2842 784 . . . 593 . . . . . . Kills 16 | . . . . . 10 4 . . . 2 . . . . . . Allies Corrupted 2 | . . . . . . 2 . . . . . . . . . . Allies Melted . | . . . . . . . . . . . . . . . . . Intel | -11 -10 -9 -8 -7 -7 -7 -6 -5 -4 -4 -4 -4 -4 -3 -2 -1 ------- Run | Scr Mat Mat Mat Fac Was Fac Fac Fac Fac Ext Cet Arc Hub Res Res Acc Robot Analysis Total 1 | . 1 . . . . . . . . . . . . . . . Derelict Logs Recovered . | . . . . . . . . . . . . . . . . . Drone Launches . | . . . . . . . . . . . . . . . . . Drone Recoveries . | . . . . . . . . . . . . . . . . . Exploration | -11 -10 -9 -8 -7 -7 -7 -6 -5 -4 -4 -4 -4 -4 -3 -2 -1 ------------- Run | Scr Mat Mat Mat Fac Was Fac Fac Fac Fac Ext Cet Arc Hub Res Res Acc Turns Passed 11146 | . 889 2281 475 562 220 1488 816 978 613 206 84 29 153 359 650 1343 Spaces Moved 12446 | 1 470 1177 254 312 295 1873 1390 1406 898 430 189 50 350 840 896 1615 Core 1217 | . . . . . . . . . . . . . . . 93 1124 Treads 1107 | . . 536 254 312 5 . . . . . . . . . . . Legs 1603 | 1 470 641 . . . . . . . . . . . . . 491 Wheels . | . . . . . . . . . . . . . . . . . Hover 2184 | . . . . . 290 1873 21 . . . . . . . . . Flight 6335 | . . . . . . . 1369 1406 898 430 189 50 350 840 803 . Fastest Speed 28 | 120 120 120 145 145 52 45 31 28 34 34 34 34 34 34 32 50 Average Speed 62 | 120 165 149 145 157 53 48 31 31 34 34 34 34 34 34 37 68 Slowest Speed 245 | 120 200 245 145 158 158 52 111 35 35 34 34 34 34 35 50 110 Overloaded Moves . | . . . . . . . . . . . . . . . . . Propulsion Burnouts . | . . . . . . . . . . . . . . . . . Robots Hopped 47 | . . . . . . . . 15 3 12 2 . 2 5 8 . Cave-ins Triggered . | . . . . . . . . . . . . . . . . . Exploration Rate (%) 49 | 1 89 85 27 8 94 47 51 54 31 63 90 75 42 19 25 46 Regions Visited 16 Branch Regions 4 Pre-discovered Areas . | . . . . . . . . . . . . . . . . . Known Exits Taken 14 | 1 1 1 1 . . 1 1 1 1 1 1 1 1 1 1 . Unknown Exits Taken . | . . . . . . . . . . . . . . . . . Scrap Searched . | . . . . . . . . . . . . . . . . . Spaces Dug 63 | . . . . . . 3 7 11 13 . . 1 4 8 13 3 Terrain Destroyed 308 | . . 53 . . 22 3 7 11 13 . . 1 172 8 13 5 Melee 60 | . . . . . . 3 7 11 13 . . 1 4 8 13 . Projectile 5 | . . . . . . . . . . . . . . . . 5 AOE 243 | . . 53 . . 22 . . . . . . . 168 . . . Terrain Rammed . | . . . . . . . . . . . . . . . . . Walls Destroyed . | . . . . . . . . . . . . . . . . . Machines Disabled . | . . . . . . . . . . . . . . . . . Actions | -11 -10 -9 -8 -7 -7 -7 -6 -5 -4 -4 -4 -4 -4 -3 -2 -1 --------- Run | Scr Mat Mat Mat Fac Was Fac Fac Fac Fac Ext Cet Arc Hub Res Res Acc Total 15336 | . 559 1555 329 360 352 2393 1744 1897 1166 467 202 59 371 889 1188 1805 Wait 2082 | . 67 218 37 6 28 319 292 449 228 41 14 9 4 27 246 97 Move 12341 | . 469 1176 253 312 294 1872 1389 1376 891 406 185 49 345 829 880 1615 Hop 43 | . . . . . . . . 14 3 11 1 . 2 5 7 . Pick Up 112 | . 4 21 4 8 1 21 10 9 5 1 . . 3 4 9 12 Fast Attach 62 | . 2 6 2 1 . 9 7 6 7 . . . 1 3 1 17 Attach 47 | . . 5 3 2 1 1 . 3 . 1 . . 4 4 11 12 Detach 20 | . . 2 1 . 1 1 2 2 1 . . . 1 1 2 6 Swap 101 | . 3 20 10 9 10 14 13 9 5 1 . . 3 3 . 1 Drop 148 | . 3 25 4 10 12 32 17 14 8 1 . . 2 4 8 8 Fire 151 | . 11 75 14 11 5 10 . . . . . . . . . 25 Melee 135 | . . 4 . 1 . 36 14 15 18 5 2 1 6 9 21 3 Ram 12 | . . . . . . . . . . . . . . . 3 9 Kick 2 | . . 2 . . . . . . . . . . . . . . Crush 2 | . . 1 1 . . . . . . . . . . . . . Escape Stasis 78 | . . . . . . 78 . . . . . . . . . . Rewire . | . . . . . . . . . . . . . . . . . Trap . | . . . . . . . . . . . . . . . . . Miscellaneous . | . . . . . . . . . . . . . . . . . Route ------- -11/Scrapyard -10/Materials (discovered 3 exits: *Mat x2 / *Min) -9/Materials (discovered 4 exits: *Mat x3 / *Min) -8/Materials -7/Factory -7/Waste -7/Factory (discovered 5 exits: *Fac x4 / *Low) -6/Factory (discovered 3 exits: *Fac / *Low x2) -5/Factory (discovered 3 exits: *Fac x2 / *Upp) -4/Factory (discovered 7 exits: *Res x2 / Upp x2 / *Ext x2 / Arm) -4/Extension (discovered 3 exits: *Res x2 / *Cet) -4/Cetus (discovered 2 exits: *Res / *Arc) -4/Archives -4/Hub_04(d) (discovered 4 exits: *Res x4) -3/Research -2/Research (discovered 3 exits: *Acc x3) -1/Access History --------- Turn | Location | Event 1 | -11/Scrapyard | Identified exit to Materials 1 | -11/Scrapyard | Discovered exit to Materials (range 0) 1 | -11/Scrapyard | Entered Materials 1 | -10/Materials | Evolved 1 slot: Utility x1 230 | -10/Materials | Identified exit to Mines 230 | -10/Materials | Discovered exit to Mines (range 8) 307 | -10/Materials | Build established: Hacker-Mutant 401 | -10/Materials | Identified exit to Materials 401 | -10/Materials | Discovered exit to Materials (range 10) 622 | -10/Materials | Discovered exit to Materials (range 14) 754 | -10/Materials | Repaired Hvy. EM Pulse Gun 890 | -10/Materials | Entered another Materials area 890 | -9/Materials | Evolved 2 slots: Propulsion x1, Utility x1 1965 | -9/Materials | Identified exit to Materials 1965 | -9/Materials | Discovered exit to Materials (range 10) 2109 | -9/Materials | Identified exit to Mines 2109 | -9/Materials | Discovered exit to Mines (range 14) 2497 | -9/Materials | Discovered exit to Materials (range 13) 2557 | -9/Materials | Repaired Adv. Treads? 3146 | -9/Materials | Discovered exit to Materials (range 18) 3171 | -9/Materials | Entered another Materials area 3171 | -8/Materials | Evolved 2 slots: Utility x2 3616 | -8/Materials | Identified exit to Factory 3616 | -8/Materials | Discovered exit to Factory (range 18) 3646 | -8/Materials | Entered Factory 3646 | -7/Factory | Evolved 2 slots: Utility x2 4208 | -7/Factory | Sucked down chute 4208 | -7/Factory | Entered Waste 4238 | -7/Waste | Spotted C-40 Crusher 4272 | -7/Waste | Spotted C-40 Crusher 4275 | -7/Waste | Spotted C-40 Crusher 4285 | -7/Waste | Warlord forces began an assault 4341 | -7/Waste | Spotted C-40 Crusher 4351 | -7/Waste | Spotted C-40 Crusher 4352 | -7/Waste | Allies destroyed C-40 Crusher 4355 | -7/Waste | Allies destroyed C-40 Crusher 4374 | -7/Waste | Spotted C-40 Crusher 4377 | -7/Waste | Allies destroyed C-40 Crusher 4386 | -7/Waste | Identified exit to Factory 4386 | -7/Waste | Discovered exit to Factory (range 13) 4428 | -7/Waste | Entered Factory 4428 | -7/Factory | Accompanied by 15 allies 4465 | -7/Factory | Repaired Sensor Array 4524 | -7/Factory | Build established: Scavenger-Mutant 4588 | -7/Factory | Identified exit to Factory 4588 | -7/Factory | Discovered exit to Factory (range 17) 4761 | -7/Factory | Discovered exit to Factory (range 17) 4809 | -7/Factory | P-60 Hacker assimilated allied H3-0FY(g) 4963 | -7/Factory | Identified exit to Lower Caves 4963 | -7/Factory | Discovered exit to Lower Caves (range 17) 5011 | -7/Factory | Repaired Lgt. Deuterium Engine 5182 | -7/Factory | Build established: Hacker-Gladiator 5702 | -7/Factory | Build established: Scavenger-Ninja 5916 | -7/Factory | Entered another Factory area 5916 | -6/Factory | Evolved 2 slots: Propulsion x1, Utility x1 5998 | -6/Factory | Identified exit to Lower Caves 5998 | -6/Factory | Discovered exit to Lower Caves (range 6) 6042 | -6/Factory | Garrison activated, responded to threat 6154 | -6/Factory | Discovered exit to Lower Caves (range 14) 6322 | -6/Factory | Repaired Greatsword 6385 | -6/Factory | Repaired Xenon Bombardment Thruster 6724 | -6/Factory | Identified exit to Factory 6724 | -6/Factory | Discovered exit to Factory (range 19) 6732 | -6/Factory | Entered another Factory area 6732 | -5/Factory | Evolved 2 slots: Propulsion x1, Utility x1 6781 | -5/Factory | Build established: Hacker-Ninja 7085 | -5/Factory | Repaired Lgt. Nuclear Core 7136 | -5/Factory | Repaired Nuclear Pulse Thruster 7187 | -5/Factory | Repaired Nuclear Pulse Thruster 7232 | -5/Factory | Repaired Greatsword 7408 | -5/Factory | Identified exit to Upper Caves 7408 | -5/Factory | Discovered exit to Upper Caves (range 9) 7425 | -5/Factory | Identified exit to Factory 7425 | -5/Factory | Discovered exit to Factory (range 13) 7512 | -5/Factory | Discovered exit to Factory (range 10) 7710 | -5/Factory | Entered another Factory area 7710 | -4/Factory | Evolved 2 slots: Utility x2 7928 | -4/Factory | Spotted B-86 Titan 7959 | -4/Factory | Identified exit to Research 7959 | -4/Factory | Discovered exit to Research (range 8) 7962 | -4/Factory | Identified exit to Upper Caves 7962 | -4/Factory | Identified exit to Extension 7962 | -4/Factory | Identified exit to Armory 8038 | -4/Factory | Discovered exit to Research (range 5) 8171 | -4/Factory | Repaired Imp. Transmission Jammer 8222 | -4/Factory | Repaired Imp. Maneuvering Thrusters 8323 | -4/Factory | Entered Extension 8334 | -4/Extension | Identified exit to Cetus 8385 | -4/Extension | Rescued A7 8407 | -4/Extension | Rescued a captive Derelict 8407 | -4/Extension | Rescued a captive Derelict 8426 | -4/Extension | Rescued a captive Derelict 8428 | -4/Extension | Rescued a captive Derelict 8453 | -4/Extension | Spotted B-86 Titan 8486 | -4/Extension | Spotted B-86 Titan 8492 | -4/Extension | Discovered exit to Research (range 3) 8523 | -4/Extension | Discovered exit to Research (range 19) 8529 | -4/Extension | Entered Cetus 8533 | -4/Cetus | Spotted Cetus Guard 8537 | -4/Cetus | Spotted Cetus Guard 8537 | -4/Cetus | Spotted Cetus Guard 8545 | -4/Cetus | Spotted Cetus Guard 8552 | -4/Cetus | Discovered exit to Research (range 21) 8606 | -4/Cetus | Identified exit to Archives 8606 | -4/Cetus | Discovered exit to Archives (range 22) 8613 | -4/Cetus | Entered Archives 8634 | -4/Archives | Identified exit to Hub_04(d) 8634 | -4/Archives | Discovered exit to Hub_04(d) (range 22) 8642 | -4/Archives | Entered Hub_04(d) 8683 | -4/Hub_04(d) | Discovered exit to Research (range 20) 8686 | -4/Hub_04(d) | Network Hub disabled 8707 | -4/Hub_04(d) | Spotted Lightning 8714 | -4/Hub_04(d) | Spotted Lightning 8714 | -4/Hub_04(d) | Spotted Lightning 8714 | -4/Hub_04(d) | Spotted Lightning 8725 | -4/Hub_04(d) | Spotted Lightning 8725 | -4/Hub_04(d) | Spotted Lightning 8738 | -4/Hub_04(d) | Spotted Lightning 8795 | -4/Hub_04(d) | Entered Research 8795 | -3/Research | Evolved 2 slots: Power x1, Utility x1 8864 | -3/Research | Identified exit to Research 8864 | -3/Research | Discovered exit to Research (range 18) 9154 | -3/Research | Entered another Research area 9154 | -2/Research | Evolved 2 slots: Propulsion x1, Utility x1 9300 | -2/Research | Found Antimissile System 9567 | -2/Research | Lost 4 parts (1n3u) 9613 | -2/Research | Spotted B-90 Cyclops 9766 | -2/Research | Identified exit to Access 9786 | -2/Research | Lost 13 parts (1p7n3u2w) 9793 | -2/Research | Spotted B-90 Cyclops 9804 | -2/Research | Entered Access 9804 | -1/Access | Evolved 2 slots: Utility x2 9944 | -1/Access | Found Powered Armor 9955 | -1/Access | Found Fusion Bomb Launcher 10510 | -1/Access | Build established: Hacker-Skirmisher 10579 | -1/Access | Spotted B-99 Colossus 10710 | -1/Access | System corruption reached 10% 10724 | -1/Access | Lost 10 parts (1p1n7u1w) 10962 | -1/Access | Core integrity fell below 50% 10981 | -1/Access | Lost 3 parts (2n1u) 11029 | -1/Access | Spotted B-99 Colossus 11053 | -1/Access | Spotted B-99 Colossus 11061 | -1/Access | Core integrity fell below 20% 11136 | -1/Access | Build established: Hacker-Mutant 11147 | -1/Access | Destroyed by P-80 Master with Gamma Rifle Last Messages --------------- 11056_ Penetrated by Slug. 11056_ Slug penetrates Wall. 11056_ Penetrated by Slug. 11056_ Imp. Hacking Suite destroyed. 11056_ Slug penetrates Wall. 11060_ Enh. Optical Array destroyed. 11060_ Penetrated by Slug. 11060_ Slug penetrates Wall. 11061_ B-99 Colossus activates siege mode. 11062_ System corrupted: Matter fused (-8). 11062_ Slammed into G-73 Enforcer. 11067_ Door malfunctions. 11067_ Wave Collapse Detector explodes. 11076_ Acquired Falx. 11089_ System corrupted: Matter fused (-5). 11107_ H>S5&3 0Y:0A%6JLLCTQ:J=Z>V&%9V/TX7B3&5 11107_ Drone sends a signal. 11125_ System corrupted: Matter fused (-7). 11125_ Slammed into K-01 Serf. 11147_ System corrupted: Matter fused (-8). Map ----- +----------------------------------------------------+ | ????????????????????????????????????????? | | ????????????????????????????????????????? | | ????????????????????????????????????????? | | ????????????????????????????????????????? | | ????????????????????????????????????????? | | ????????????????????????????????????????? | | ????????????????????????????????????????? | | ????????????????????????????????????????? | | ????????????????????????????????????????? | | ????????????????????????????????????????? | | ????????????????????????????????????????? | | ????????????????????????????????????????? | | ????????????????????????????????????????? | | ??????????########??????????????????????? | | ?????????? ?????????????????????? | | ?????????? ?????????????????????? | | ??????????? ????????????????????? | | ????????????? ?##########????????? | | ??????????????? # = #????????? | | ????????????????# # #????????? | | ????????????????# # !#????????? | | ????????????????# # ! #????????? | | ????????????????+ + #????????? | | ????????????????# # #????????? | | ????????????????# # !!!#????????? | | ????????????????# # @ !!!#????????? | | #########???????# # pp !! #????????? | | #???????# ##/#######?? #??? | | #???????# ### #??? | | #???????# #??? | | #???????# #??? | | """ / #???????# #??? | | """ #???????# % #??? | | """ #???????# #??? | | """ ######### #??? | | """ / #??? | | """ ####################+#########??? | | #???????????????????????????????? | | #???????????????????????????????? | | #########???????????????????????????????? | | ????????????????????????????????????????? | | ????????????????????????????????????????? | | ????????????????????????????????????????? | | ????????????????????????????????????????? | | ????????????????????????????????????????? | | ????????????????????????????????????????? | | ????????????????????????????????????????? | | ????????????????????????????????????????? | | ????????????????????????????????????????? | | ????????????????????????????????????????? | +----------------------------------------------------+ Best States ------------- Heat Dissipation 56 Energy Generation 34 Energy Capacity 290 Matter Stores 300 Matter Capacity 600 Sight Range 22 Robot Scan Range 16 Terrain Scan Density 610 ECM Strength 2 Jamming Range 12 Cloak Strength 3 Base Temperature (-) 200 Armor Coverage 400 Resistance: KI 35 Resistance: TH 35 Resistance: EX 35 Resistance: EM 35 Resistance: I 35 Resistance: S 35 Resistance: P 35 Propulsion Shielding 66 Point Defense Rating 240 Melee Speed Boost 20 Evasion (%) 74 Targeting Accuracy 16 Melee Accuracy 16 Recoil Reduction 3 Stasis Canceling 2 Offensive Hacking 32 Defensive Hacking 14 Item Schematics ----------------- Imp. Aluminum Leg | -9/Materials | Scanalyzed Hvy. Particle Gun | -8/Materials | Scanalyzed Lgt. Angular Momentum Engine | -4/Factory | Scanalyzed Robot Schematics ------------------ None Fabricated ------------ Nothing Alien Tech Used ----------------- None Achievements -------------- Prison Break Challenges ------------ None Game ------ Seed FieldBackupDerivative Manual? 0 Play Time 04:54:47 Cumulative 159.9 hours Start 2021.04.01 @ 21:22:30 End 2021.04.04 @ 12:56:18 Sessions 5 Manual Loads 0 Difficulty Explorer Special Mode None Game No. 79 Rogue 68 Adventurer 0 Explorer 11 Win Type - Total 2 Types 2/0/0/0/0/0/0/0/0 Lore% 54 Gallery% 61 Achievement% 46 Wizard Run 0 Options --------- ASCII 1 Keyboard 1 Movement Numpad Keybinds 0 Fullscreen 1 Font 18/SmallcapsGlow Map View 76x50 Tactical HUD 1 Map Filters NONE Filters NONE Steam 1 RUN: 6356a51e-6b69-44d3-9f8e-345758661eb1